fUSD/lending_fUSD_20240201
["ID","MTS","AMOUNT","RATE_DAILY","PERIOD"]
[313149718,1706817041527,-524.86593909,0.00022996,2]
[313149719,1706817041537,-162.10429849,0.00022996,2]
[313149720,1706817041549,-296.08247319,0.00022996,2]
[313149721,1706817041559,-760.46950092,0.00022996,2]
[313149722,1706817041568,-1042.70064617,0.00022996,2]
[313149723,1706817041578,-1816.55290088,0.00022996,2]
[313149724,1706817041593,-159.12735678,0.00022996,2]
[313149725,1706817041602,-235.12703746,0.00022996,2]
[313149726,1706817041611,-215.53094657,0.00022996,2]
[313149727,1706817041621,-172.24895833,0.00022996,2]
[313149728,1706817041630,-155.37341501,0.00022996,2]
[313149729,1706817041640,-204.80922949,0.00022996,2]
[313149730,1706817041649,-400.0,0.00022996,2]
[313149731,1706817041660,-503.73967654,0.00022996,2]
[313149732,1706817041669,-2686.4464071,0.00022996,2]
[313149733,1706817041679,-417.45846178,0.00022996,2]
[313149734,1706817041689,-1349.37814829,0.00022997,2]
[313149735,1706817041698,-155.59130604,0.00022997,2]
[313149736,1706817041708,-3632.67541228,0.00022997,2]
[313149737,1706817041717,-1990.06970528,0.00022997,2]
[313149738,1706817041730,-848.23217184,0.00022997,2]
[313149739,1706817041739,-456.4875281,0.00022997,2]
[313149740,1706817041749,-1520.6669365,0.00022997,2]
[313149741,1706817041759,-2897.3847213,0.00022997,2]
[313149742,1706817041768,-56502.3438194,0.00022997,2]
[313149743,1706817041777,-413.15022701,0.00022998,2]
[313149744,1706817041787,-1052.88889193,0.00022998,2]
[313149745,1706817041797,-4634.6600189,0.00022998,2]
[313149746,1706817041806,-218.05929931,0.00022998,2]
[313149747,1706817041815,-364.22141274,0.00022998,2]
[313149748,1706817041824,-941.78794294,0.00022998,2]
[313149749,1706817041834,-5445.7964682,0.00022998,2]
[313149750,1706817041843,-298.82580935,0.00022998,2]
[313149751,1706817041853,-2086.20839324,0.00022998,2]
[313149752,1706817041862,-156.22870762,0.00022998,2]
[313149753,1706817041871,-155.62835532,0.00022998,2]
[313149754,1706817041881,-288.03524596,0.00022998,2]
[313149755,1706817041890,-289.96148954,0.00022998,2]
[313149756,1706817041904,-1270.0730526,0.00022998,2]
[313149757,1706817041914,-155.0,0.00022998,2]
[313149758,1706817041923,-2781.52303549,0.00022998,2]
[313149759,1706817041932,-245.07493939,0.00022998,2]
[313149760,1706817041942,-155.19659664,0.00022998,2]
[313149761,1706817041951,-155.0,0.00022998,2]
[313149762,1706817041960,-151.90465822,0.00022998,2]
[313149763,1706817041973,-632.6643934,0.00022998,2]
[313149767,1706817042858,-19.12975096,0.00022998,2]
[313149768,1706817042867,-191.27689947,0.00022998,2]
[313149769,1706817042877,-2143.62450616,0.00022998,2]
[313149770,1706817042886,-155.51757239,0.00022998,2]
[313149771,1706817042895,-155.5397774,0.00022998,2]
[313149772,1706817042905,-956.9078761,0.00022998,4]
[313149773,1706817042914,-150.01,0.00022999,2]
[313149774,1706817042923,-1348.83623704,0.00022999,2]
[313149775,1706817042935,-1957.92174279,0.00022999,2]
[313149776,1706817042944,-1000.0,0.00022999,2]
[313149777,1706817042953,-7480.39994617,0.00023,2]
[313149778,1706817042965,-625.93001114,0.00023,2]
[313149779,1706817042977,-846.22987002,0.00023,2]
[313149780,1706817042988,-455.81892459,0.00023,2]
[313149781,1706817043001,-1228.15636633,0.00023,2]
[313149782,1706817043223,-1044.09255003,0.00023,2]
[313149783,1706817043239,-20962.57,0.00023,2]
[313149786,1706817043256,-279.50681082,0.00022617,2]
[313149788,1706817043266,-1481.29920694,0.00023,2]
[313149790,1706817043278,-583.9169525,0.00023,2]
[313149793,1706817043289,-17750.87304341,0.00023,2]
[313149795,1706817043300,-966.02090193,0.00023,2]
[313149797,1706817043315,-431.79686796,0.00023,2]
[313149800,1706817043326,-176073.33334224,0.00023,2]
[313149801,1706817043335,-2599.88218869,0.00023,2]
[313149804,1706817043344,-213221.72073548,0.00023,2]
[313149805,1706817043354,-2000.0,0.00023,2]
[313149807,1706817043363,-200.0,0.00023,2]
[313149809,1706817043372,-500.0,0.00023,2]
[313149811,1706817043381,-1500.0,0.00023,2]
[313149813,1706817043390,-270.96,0.00023,2]
[313149815,1706817043399,-2318.3538364,0.00023,2]
[313149817,1706817043409,-225.92,0.00023016,2]
[313149819,1706817043418,-1223.80117972,0.00023022,2]
[313149821,1706817043427,-225.92,0.00023077,2]
[313149823,1706817043436,-225.92,0.00023137,2]
[313149825,1706817043445,-1288.11736518,0.00023139,2]
[313149827,1706817043455,-225.92,0.00023198,2]
[313149829,1706817043465,-1000.0,0.000232,2]
[313149831,1706817043474,-225.92,0.00023258,2]
[313149833,1706817043484,-174.4,0.00023318,2]
[313149835,1706817043493,-1084.33,0.00023613,2]
[313149837,1706817043502,-1000.0,0.000237,2]
[313149839,1706817043511,-1000.0,0.000238,2]
[313149840,1706817043520,-500.0,0.00023801,2]
[313149841,1706817043531,-202.854391,0.00024,2]
[313149842,1706817043540,-815.038764,0.00024,2]
[313149843,1706817043549,-169.87,0.00024297,2]
[313149844,1706817043558,-167.0,0.00024297,2]
[313149845,1706817043567,-172.47,0.00024297,2]
[313149846,1706817043576,-921.54930986,0.00024383,4]
[313149847,1706817043585,-8968.94,0.00024384,2]
[313149848,1706817043595,-10525.82898628,0.00024461,2]
[313149849,1706817043604,-304.68,0.00024467,2]
[313149850,1706817043613,-432.77,0.00024579,2]
[313149851,1706817043623,-366.74812054,0.00024658,2]
[313149852,1706817043633,-7836.05,0.00024658,2]
[313149853,1706817043642,-1972.46,0.00024658,3]
[313149854,1706817043652,-250.0,0.00024658,2]
[313149855,1706817043665,-174.4,0.00024688,2]
[313149856,1706817043674,-1000.0,0.00024715,2]
[313149857,1706817043683,-500.0,0.00024785,2]
[313149858,1706817043693,-290.30960641,0.00024794,2]
[313149859,1706817043702,-210.0,0.00024879,2]
[313149860,1706817043711,-208.35628047,0.00025,4]
[313149861,1706817043721,-160.351288,0.00025,2]
[313149862,1706817043730,-202.54115654,0.00025,2]
[313149863,1706817043739,-1904.53326151,0.00025,2]
[313149864,1706817043749,-167.80869471,0.00025,2]
[313149865,1706817043758,-1587.92031382,0.00025,2]
[313149866,1706817043768,-935.55189282,0.00025,2]
[313149867,1706817043777,-304.2742515,0.00025,2]
[313149868,1706817043786,-1253.06290056,0.00025,2]
[313149869,1706817043795,-535.47499119,0.00025,2]
[313149870,1706817043804,-1250.0,0.00025,3]
[313149871,1706817043814,-167.0,0.00025099,2]
[313149872,1706817043823,-1084.33,0.00025256,2]
[313149873,1706817043832,-304.68,0.00025332,2]
[313149874,1706817043842,-206.0,0.00025589,6]
[313149875,1706817043851,-2534.61960427,0.000257,2]
[313149876,1706817043998,-85.38039573,0.000257,2]
[313149877,1706817044008,-4976.0,0.000257,2]
[313149878,1706817044017,-500.0,0.00025733,2]
[313149879,1706817044027,-200.0,0.00025733,2]
[313149880,1706817044036,-500.0,0.0002577,2]
[313149881,1706817044045,-167.0,0.00025901,2]
[313149882,1706817044054,-150.0,0.00026079,2]
[313149883,1706817044063,-304.68,0.00026198,2]
[313149884,1706817044072,-169.87,0.00026302,2]
[313149885,1706817044081,-392.913,0.00026338,2]
[313149886,1706817044090,-1363.0,0.00026338,2]
[313149887,1706817044100,-2432.0,0.00026338,2]
[313149888,1706817044110,-949.0,0.00026338,2]
[313149889,1706817044121,-1861.0,0.00026338,2]
[313149890,1706817044130,-588.56,0.00026338,2]
[313149891,1706817044139,-839.0,0.00026338,2]
[313149892,1706817044148,-2866.0,0.00026338,2]
[313149893,1706817044159,-1241.129,0.00026338,2]
[313149894,1706817044168,-215.0,0.00026338,2]
[313149895,1706817044177,-1250.0,0.00026338,2]
[313149896,1706817044186,-247.337,0.00026338,2]
[313149897,1706817044195,-1941.0,0.00026338,2]
[313149898,1706817044205,-1000.0,0.00026338,2]
[313149899,1706817044216,-596.0,0.00026338,2]
[313149900,1706817044225,-427.0,0.00026338,2]
[313149901,1706817044234,-1138.0,0.00026338,2]
[313149902,1706817044243,-444.616,0.00026338,2]
[313149903,1706817044252,-860.0,0.00026338,2]
[313149904,1706817044261,-231.354,0.00026338,2]
[313149905,1706817044269,-211.234,0.00026338,2]
[313149906,1706817044278,-5602.0,0.00026338,2]
[313149907,1706817044287,-2281.0,0.00026338,2]
[313149908,1706817044296,-3041.118,0.00026338,2]
[313149909,1706817044305,-8130.0,0.00026338,2]
[313149910,1706817044314,-7384.0,0.00026338,2]
[313149911,1706817044322,-4192.0,0.00026338,2]
[313149912,1706817044331,-19773.0,0.00026338,2]
[313149913,1706817044340,-168.563,0.00026338,2]
[313149914,1706817044349,-151.014,0.00026338,2]
[313149915,1706817044359,-150.0,0.00026338,2]
[313149916,1706817044367,-1038.758,0.00026338,2]
[313149917,1706817044377,-230.735,0.00026338,2]
[313149918,1706817044385,-394.495,0.00026338,2]
[313149919,1706817044394,-150.98,0.00026338,2]
[313149920,1706817044403,-200.0,0.00026338,2]
[313149921,1706817044414,-6555.00335463,0.000264,2]
[313149922,1706817044423,-167.0,0.00026703,2]
[313149923,1706817044432,-500.0,0.00026754,2]
[313149924,1706817044441,-432.77,0.00026843,2]
[313149925,1706817044450,-1084.33,0.000269,2]
[313149926,1706817044459,-417.82270644,0.00027,2]
[313149927,1706817044468,-1300.0,0.00027,3]
[313149928,1706817044478,-304.68,0.00027063,2]
[313149929,1706817044487,-293.0,0.00027367,2]
[313149930,1706817044496,-150.0,0.00027397,2]
[313149931,1706817044505,-3000.0,0.00027397,2]
[313149932,1706817044515,-3000.0,0.00027397,2]
[313149933,1706817044524,-3000.0,0.00027397,2]
[313149934,1706817044533,-3000.0,0.00027397,2]
[313149935,1706817044542,-4368.92988304,0.00027397,2]
[313149936,1706817044551,-1457.4,0.00027397,2]
[313149937,1706817044560,-574.93,0.00027397,2]
[313149938,1706817044569,-152.18,0.00027397,2]
[313149939,1706817044579,-28951.28,0.00027397,2]
[313149940,1706817044588,-5868.21,0.00027397,2]
[313149941,1706817044597,-5281.38,0.00027397,2]
[313149942,1706817044606,-1000.0,0.00027461,2]
[313149943,1706817044615,-155.0,0.000275,2]
[313149944,1706817044625,-167.0,0.00027505,2]
[313149945,1706817044633,-5868.21,0.00027556,2]
[313149946,1706817044642,-5281.38,0.00027556,2]
[313149947,1706817044652,-1457.4,0.00027614,2]
[313149948,1706817044662,-574.93,0.00027614,2]
[313149949,1706817044671,-5868.21,0.00027714,2]
[313149950,1706817044680,-5281.38,0.00027714,2]
[313149951,1706817044689,-491.0,0.00027739,5]
[313149952,1706817044698,-500.0,0.00027739,2]
[313149953,1706817044707,-152.18,0.0002774,2]
[313149954,1706817044716,-1457.4,0.0002783,2]
[313149955,1706817044726,-574.93,0.0002783,2]
[313149956,1706817044735,-5868.21,0.00027872,2]
[313149957,1706817044744,-5281.38,0.00027872,2]
[313149958,1706817044754,-500.0,0.0002788,2]
[313149959,1706817044763,-500.0,0.0002788,2]
[313149960,1706817044772,-500.0,0.0002788,2]
[313149961,1706817044781,-500.0,0.0002788,2]
[313149962,1706817044790,-500.0,0.0002788,2]
[313149963,1706817044799,-500.0,0.0002788,2]
[313149964,1706817044808,-500.0,0.0002788,2]
[313149965,1706817044817,-500.0,0.0002788,2]
[313149966,1706817044826,-500.0,0.0002788,2]
[313149967,1706817044835,-500.0,0.0002788,2]
[313149968,1706817044844,-500.0,0.0002788,2]
[313149969,1706817044853,-500.0,0.0002788,2]
[313149970,1706817044861,-500.0,0.0002788,2]
[313149971,1706817044870,-500.0,0.0002788,2]
[313149972,1706817044879,-500.0,0.0002788,2]
[313149973,1706817044888,-500.0,0.0002788,2]
[313149974,1706817044897,-500.0,0.0002788,2]
[313149975,1706817044907,-500.0,0.0002788,2]
[313149976,1706817044916,-500.0,0.0002788,2]
[313149977,1706817044925,-500.0,0.0002788,2]
[313149978,1706817044933,-500.0,0.0002788,2]
[313149979,1706817044942,-500.0,0.0002788,2]
[313149980,1706817044951,-500.0,0.0002788,2]
[313149981,1706817044960,-500.0,0.0002788,2]
[313149982,1706817044969,-500.0,0.0002788,2]
[313149983,1706817044978,-500.0,0.0002788,2]
[313149984,1706817044987,-500.0,0.0002788,2]
[313149985,1706817044996,-500.0,0.0002788,2]
[313149986,1706817045005,-500.0,0.0002788,2]
[313149987,1706817045014,-500.0,0.0002788,2]
[313149988,1706817045024,-500.0,0.0002788,2]
[313149989,1706817045033,-500.0,0.0002788,2]
[313149990,1706817045042,-500.0,0.0002788,2]
[313149991,1706817045051,-500.0,0.0002788,2]
[313149992,1706817045060,-500.0,0.0002788,2]
[313149993,1706817045069,-500.0,0.0002788,2]
[313149994,1706817045078,-500.0,0.0002788,2]
[313149995,1706817045087,-500.0,0.0002788,2]
[313149996,1706817045097,-500.0,0.0002788,2]
[313149997,1706817045105,-500.0,0.0002788,2]
[313149998,1706817045118,-500.0,0.0002788,2]
[313149999,1706817045127,-500.0,0.0002788,2]
[313150000,1706817045136,-500.0,0.0002788,2]
[313150001,1706817045145,-500.0,0.0002788,2]
[313150002,1706817045155,-500.0,0.0002788,2]
[313150003,1706817045165,-500.0,0.0002788,2]
[313150004,1706817045173,-500.0,0.0002788,2]
[313150005,1706817045183,-500.0,0.0002788,2]
[313150006,1706817045193,-500.0,0.0002788,2]
[313150007,1706817045202,-500.0,0.0002788,2]
[313150008,1706817045211,-500.0,0.0002788,2]
[313150009,1706817045220,-500.0,0.0002788,2]
[313150010,1706817045229,-500.0,0.0002788,2]
[313150011,1706817045238,-500.0,0.0002788,2]
[313150012,1706817045247,-500.0,0.0002788,2]
[313150013,1706817045256,-500.0,0.0002788,2]
[313150014,1706817045265,-520.45,0.0002788,2]
[313150015,1706817045275,-500.0,0.0002788,2]
[313150016,1706817045285,-500.0,0.0002788,2]
[313150017,1706817045294,-500.0,0.0002788,2]
[313150018,1706817045304,-500.0,0.0002788,2]
[313150019,1706817045313,-183.85298174,0.00027898,2]
[313150020,1706817045321,-155.0,0.000279,2]
[313150021,1706817045331,-304.68,0.00027928,2]
[313150022,1706817045341,-150.0,0.00027945,2]
[313150023,1706817045352,-693.63334038,0.00028,2]
[313150024,1706817045362,-5868.21,0.0002803,2]
[313150025,1706817045372,-5281.38,0.0002803,2]
[313150026,1706817045381,-1457.4,0.00028046,2]
[313150027,1706817045391,-574.93,0.00028046,2]
[313150028,1706817045401,-152.18,0.00028082,2]
[313150029,1706817045411,-1457.4,0.00028262,2]
[313150030,1706817045420,-574.93,0.00028262,2]
[313150031,1706817045429,-169.87,0.00028307,2]
[313150032,1706817045438,-167.0,0.00028307,2]
[313150033,1706817045447,-172.47,0.00028307,2]
[313150034,1706817045456,-152.18,0.00028425,2]
[313150035,1706817045465,-1457.4,0.00028479,2]
[313150036,1706817045474,-574.93,0.00028479,2]
[313150037,1706817045484,-155.39886903,0.00028493,2]
[313150038,1706817045493,-150.0,0.000285,5]
[313150039,1706817045503,-1084.33,0.00028544,2]
[313150040,1706817045513,-500.0,0.00028648,2]
[313150041,1706817045522,-200.0,0.00028648,2]
[313150042,1706817045531,-1457.4,0.00028695,2]
[313150043,1706817045540,-574.93,0.00028695,2]
[313150044,1706817045549,-206.0,0.00028717,11]
[313150045,1706817045559,-500.0,0.00028724,2]
[313150046,1706817045568,-152.18,0.00028767,2]
[313150047,1706817045577,-5000.0,0.0002878,2]
[313150048,1706817045587,-193.54568043,0.0002878,2]
[313150049,1706817045595,-193.39983244,0.0002878,2]
[313150050,1706817045604,-304.68,0.00028794,2]
[313150051,1706817045614,-205.11348414,0.00028798,5]
[313150052,1706817045622,-330.15849213,0.00028798,2]
[313150053,1706817045631,-3038.06524818,0.00028798,2]
[313150054,1706817045640,-2073.3252585,0.000288,2]
[313150055,1706817045649,-162.717784,0.000288,2]
[313150056,1706817045660,-313.234704,0.000288,2]
[313150057,1706817045669,-200.0,0.000288,2]
[313150058,1706817045678,-178.41668698,0.00028877,2]
[313150059,1706817045688,-202.34228253,0.00028878,2]
[313150060,1706817045698,-7177.35341224,0.00028878,5]
[313150061,1706817045707,-469245.83314516,0.0002888,3]
[313150062,1706817045717,-8847.52343634,0.0002888,2]
[313150063,1706817045731,-375.57480667,0.0002888,2]
[313150064,1706817045742,-1641.23690211,0.0002888,2]
[313150065,1706817045754,-302.16758233,0.0002888,2]
[313150066,1706817045765,-1518.25,0.0002888,2]
[313150067,1706817045776,-1818.40493773,0.0002888,2]
[313150068,1706817045787,-4594.2411043,0.0002888,2]
[313150069,1706817045798,-267.9653987,0.0002888,2]
[313150070,1706817045810,-544.10587771,0.0002888,2]
[313150071,1706817045825,-295.06119314,0.0002888,2]
[313150072,1706817045836,-11457.67328679,0.0002888,2]
[313150073,1706817045847,-2977.01810696,0.0002888,2]
[313150074,1706817045858,-20873.1772,0.0002888,2]
[313150075,1706817045869,-396.74077807,0.0002888,2]
[313150076,1706817045888,-2540.39645503,0.0002888,2]
[313150077,1706817045989,-3306.75797983,0.00022999,2]
[313150078,1706817045998,-292.024,0.00026338,2]
[313150079,1706817046006,-151.086,0.00026338,2]
[313150080,1706817046015,-43231.77611222,0.0002888,2]
[313150081,1706817046026,-22517.13893458,0.0002888,2]
[313150082,1706817046038,-134571.30533913,0.0002888,2]
[313150083,1706817046050,-2347.46759022,0.0002888,2]
[313150084,1706817046062,-2784.60602666,0.0002888,2]
[313150085,1706817046074,-4441.50000001,0.0002888,2]
[313150086,1706817046085,-9181.16293119,0.0002888,2]
[313150087,1706817046096,-770.0,0.0002888,2]
[313150088,1706817046111,-375.31267016,0.0002888,2]
[313150089,1706817046148,-23012.72955962,0.0002888,2]
[313150090,1706817046160,-207992.12103266,0.0002888,2]
[313150091,1706817046171,-8425.54539426,0.0002888,2]
[313150158,1706817060280,3198.37181468,0.00022078,2]
[313150159,1706817080885,300.0,0.000221,8]
[313150160,1706817082999,600.0,0.000222,8]
[313150161,1706817085139,900.0,0.000223,8]
[313150162,1706817087255,1200.0,0.000224,8]
[313150163,1706817089354,1500.0,0.000225,8]
[313150167,1706817182595,160.91046424,0.00022499,2]
[313150168,1706817197272,155.40512558,0.000225,2]
[313150169,1706817200435,226.13902132,0.00022499,2]
[313150170,1706817202748,677.42633042,0.000225,2]
[313150171,1706817210293,283.71200153,0.00022499,2]
[313150172,1706817210323,198.21015724,0.00022499,2]
[313150174,1706817234439,619.12907045,0.00022414,2]
[313150175,1706817240005,211.89158902,0.00022499,2]
[313150176,1706817296458,811.12,0.00021901,2]
[313150177,1706817339077,156.91,0.0002207,2]
[313150178,1706817339194,323.18,0.00021906,2]
[313150179,1706817339285,156.91,0.00022152,2]
[313150180,1706817339492,156.91,0.00022234,2]
[313150181,1706817339722,156.91,0.00022316,2]
[313150182,1706817340136,156.91,0.00022399,2]
[313150183,1706817340399,156.91,0.00022481,2]
[313150184,1706817343912,249.52928063,0.00022069,2]
[313150185,1706817378428,605.52,0.00019944,2]
[313150186,1706817378765,605.52,0.00022208,2]
[313150187,1706817402608,250.0,0.00021918,2]
[313150188,1706817407807,168.59,0.00021862,2]
[313150189,1706817475502,172.86,0.00021847,10]
[313150190,1706817476276,2000.0,0.00021857,2]
[313150191,1706817487707,170.23,0.00017478,2]
[313150195,1706817531884,176.4,0.0002185,2]
[313150196,1706817540689,400.0,0.0002185,2]
[313150197,1706817568361,2502.09,0.00021841,2]
[313150199,1706817586913,500.0,0.00021841,2]
[313150200,1706817602369,150.0,0.00021871,2]
[313150201,1706817604746,23900.0,0.00021871,2]
[313150202,1706817686317,200.0,0.00021835,2]
[313150203,1706817691255,116.06534187,0.0003125,120]
[313150204,1706817725798,200.0,0.00021865,2]
[313150205,1706817762982,176.8,0.00022,2]
[313150206,1706817764439,283.4,0.00021833,2]
[313150207,1706817766445,250.0,0.00021815,2]
[313150208,1706817805236,8826.875,0.0002241,2]
[313150209,1706817815622,250.0,0.00021918,2]
[313150213,1706817901842,157.01,0.00021975,2]
[313150214,1706817902071,157.01,0.00022079,2]
[313150215,1706817902341,157.01,0.00022183,2]
[313150216,1706817902586,157.01,0.00022287,2]
[313150217,1706817902986,157.01,0.00022391,2]
[313150218,1706817903212,157.01,0.00022496,2]
[313150219,1706817904443,2000.0,0.00021811,2]
[313150220,1706817906179,496.18273898,0.000225,2]
[313150221,1706817920444,8829.09382925,0.00021808,2]
[313150222,1706817927066,33458.04314514,0.00021807,2]
[313150223,1706817931502,801.21,0.00019937,2]
[313150224,1706817931820,801.21,0.00022201,2]
[313150225,1706817935068,2314.86655457,0.000225,2]
[313150226,1706817977931,157.1003129,0.00022448,2]
[313150227,1706817982025,680.0,0.00021879,2]
[313150228,1706817982908,157.1003129,0.00022476,2]
[313150229,1706818019587,2856.98,0.00021794,2]
[313150231,1706818068285,2085.07,0.00021739,2]
[313150232,1706818200990,283.4,0.00021739,2]
[313150250,1706818232009,-303.1055594,0.00022502,2]
[313150252,1706818232019,-19.73714291,0.00022503,2]
[313150254,1706818232030,-448.24628009,0.00022503,2]
[313150257,1706818232039,-157.1003129,0.00022505,2]
[313150260,1706818232049,-230.26204204,0.00022507,2]
[313150262,1706818232059,-2260.20153936,0.0002251,2]
[313150264,1706818232068,-791.1862571,0.00022515,2]
[313150266,1706818232077,-157.1003129,0.00022533,2]
[313150268,1706818232087,-350.33,0.00022548,2]
[313150270,1706818232096,-157.1003129,0.00022561,2]
[313150272,1706818232105,-150.0,0.00022588,2]
[313150274,1706818232114,-208.82371397,0.00022588,2]
[313150278,1706818232138,-172.67628603,0.00022588,2]
[313150280,1706818232147,-157.1003129,0.00022589,2]
[313150282,1706818232156,-1336.42546791,0.00022589,2]
[313150284,1706818232168,-3469.91453209,0.00022589,2]
[313150286,1706818232178,-1795.11,0.00022589,2]
[313150287,1706818232187,-499.99,0.00022589,2]
[313150288,1706818232195,-613.10835394,0.000226,2]
[313150289,1706818232207,-252.72164606,0.000226,2]
[313150290,1706818232216,-157.01,0.000226,2]
[313150291,1706818232225,-157.1003129,0.00022618,2]
[313150292,1706818232234,-157.1003129,0.00022646,2]
[313150293,1706818232243,-157.1003129,0.00022674,2]
[313150294,1706818232252,-1000.0,0.00022698,2]
[313150295,1706818232261,-8324.90431475,0.00022699,2]
[313150296,1706818232273,-2055.44954774,0.00022699,2]
[313150297,1706818232284,-11737.84626998,0.00022699,2]
[313150298,1706818232295,-815.6374002,0.00022699,2]
[313150299,1706818232306,-1381.7786119,0.00022699,2]
[313150300,1706818232321,-1503.99101448,0.00022699,2]
[313150301,1706818232333,-422.93054561,0.00022699,2]
[313150302,1706818232344,-10429.99999999,0.00022699,2]
[313150305,1706818232363,-1153.450029,0.00022699,2]
[313150307,1706818232374,-742.44,0.00022699,2]
[313150309,1706818232385,-13925.3753669,0.00022699,2]
[313150311,1706818232396,-7544.91301688,0.00022699,2]
[313150313,1706818232407,-668.952,0.00022699,2]
[313150317,1706818232418,-2065.45835351,0.00022699,2]
[313150320,1706818232429,-678.38466293,0.00022699,2]
[313150322,1706818232440,-662.945,0.00022699,2]
[313150325,1706818232461,-833.79793316,0.00022699,2]
[313150326,1706818232475,-972.40604228,0.00022699,2]
[313150343,1706818238138,-43755.5550797,0.00022699,2]
[313150344,1706818238150,-375.78379918,0.00022699,2]
[313150345,1706818238161,-613.02158694,0.00022699,2]
[313150346,1706818238173,-358.48667185,0.00022699,2]
[313150347,1706818238184,-339.9021978,0.00022699,2]
[313150348,1706818238200,-2376.34405566,0.00022699,2]
[313150349,1706818238210,-5000.0,0.00022699,2]
[313150350,1706818238221,-402.44575724,0.00022699,2]
[313150351,1706818238232,-341.48354558,0.00022699,2]
[313150352,1706818238256,-467.57549674,0.00022699,2]
[313150353,1706818238265,-1201.08,0.00022699,2]
[313150354,1706818238275,-157.1003129,0.00022702,2]
[313150355,1706818238285,-157.01,0.00022704,2]
[313150356,1706818238294,-157.1003129,0.00022731,2]
[313150357,1706818238304,-157.1003129,0.00022759,2]
[313150358,1706818238313,-229.57212479,0.00022764,2]
[313150359,1706818238322,-155.73119273,0.00022768,2]
[313150360,1706818238332,-280.79430241,0.00022768,2]
[313150361,1706818238341,-2000.28955194,0.00022768,2]
[313150362,1706818238350,-154.0892644,0.0002277,2]
[313150363,1706818238359,-168.23582946,0.0002277,2]
[313150364,1706818238368,-157.1003129,0.00022787,2]
[313150365,1706818238377,-10153.37103883,0.00022796,2]
[313150366,1706818238393,-500.0,0.00022796,2]
[313150367,1706818238405,-274.06673411,0.00022796,2]
[313150368,1706818238417,-1385.73435,0.00022796,2]
[313150369,1706818238433,-1115.3846688,0.00022796,2]
[313150370,1706818238459,-725.83012372,0.00022796,2]
[313150371,1706818238472,-741.27723955,0.00022796,2]
[313150372,1706818238487,-420.8888349,0.00022796,2]
[313150373,1706818238499,-2121.53201396,0.00022796,2]
[313150374,1706818238510,-6101.09589613,0.00022796,2]
[313150375,1706818238520,-1000.0,0.00022797,2]
[313150376,1706818238529,-15044.49728847,0.00022799,2]
[313150377,1706818238543,-1362.44103371,0.00022799,2]
[313150378,1706818238556,-5609.169647,0.00022799,2]
[313150380,1706818240655,-2655.87766466,0.00022799,2]
[313150381,1706818240767,-1168.67545157,0.00022799,2]
[313150471,1706818243734,-510.40967645,0.00022799,2]
[313150473,1706818243746,-1514.51,0.00022799,2]
[313150475,1706818243758,-8759.3820718,0.00022799,2]
[313150486,1706818243849,-16814.39919535,0.00022799,2]
[313150487,1706818243861,-11951.01797083,0.00022799,2]
[313150492,1706818243908,-2921.29883282,0.00022799,2]
[313150494,1706818243920,-798.42546285,0.00022799,2]
[313150496,1706818243930,-364.23403108,0.00022799,2]
[313150498,1706818243940,-155.93305506,0.000228,2]
[313150501,1706818243953,-1000.0,0.000228,2]
[313150503,1706818243962,-2500.0,0.000228,2]
[313150505,1706818243971,-157.01,0.00022808,2]
[313150506,1706818243980,-364.23403107,0.00022813,2]
[313150509,1706818243990,-157.1003129,0.00022815,2]